bitfinex-derivatives/quotes_ETHF0:USTF0_20260113
["timestamp","ask_amount","ask_price","bid_price","bid_amount"]
[1768311031598,0.15817,3164.2,3158.9,3.4830552]
[1768311031797,3.07347771,3164.3,3158.7,0.00380913]
[1768311031999,0.15821,3163.4,3158.7,0.00380913]
[1768311032299,3.169,3163.3,3158.8,3.52224905]
[1768311032793,6.0,3163.2,3158.8,3.52224905]
[1768311032996,3.169,3163.3,3158.8,3.52224905]
[1768311033401,3.32722,3163.3,3158.8,3.52224905]
[1768311033600,3.169,3163.3,3159.8,0.15839]
[1768311033799,3.169,3163.3,3158.8,3.52224905]
[1768311034000,6.0,3163.2,3159.3,0.15841]
[1768311034193,6.0,3163.2,3158.7,0.00380913]
[1768311034194,40.8,3163.1,3158.7,0.00380913]
[1768311034505,0.15826,3162.5,3156.4,0.15856]
[1768311034799,0.15839,3159.9,3155.1,0.15862]
[1768311034993,0.15847,3158.2,3154.0,2.58697597]
[1768311035193,3.168,3158.1,3154.1,3.50524514]
[1768311035398,3.07347771,3155.5,3154.1,0.00249899]
[1768311035600,0.15855,3156.6,3147.9,7.07131877]
[1768311035601,0.15865,3154.7,3151.1,0.15883]
[1768311035800,3.168,3154.6,3151.1,0.15883]
[1768311036006,7.4504884,3156.5,3150.2,0.25201862]
[1768311036203,0.24954165,3158.1,3151.9,0.15878]
[1768311036405,0.15855,3156.6,3151.2,3.31744882]
[1768311036592,1.32,3157.3,3151.9,0.00343104]
[1768311036593,0.15857,3156.2,3151.9,0.00343104]
[1768311036798,0.15866,3154.4,3151.9,0.00343104]
[1768311037095,3.169,3154.3,3151.9,0.00343104]
[1768311037294,9.169,3154.3,3151.9,0.00343104]
[1768311037497,6.0,3154.2,3149.6,0.1589]
[1768311037701,0.15872,3153.3,3145.7,7.07131877]
[1768311037903,0.15876,3152.5,3147.9,0.15899]
[1768311038101,3.169,3152.4,3147.8,3.4527274]
[1768311038299,3.169,3153.4,3149.3,0.15892]
[1768311038900,6.0,3153.3,3147.8,0.00247797]
[1768311039098,6.0,3153.3,3148.1,0.15898]
[1768311039298,4.492,3153.2,3148.1,0.15898]
[1768311039704,0.15875,3152.8,3148.1,0.15898]
[1768311039894,0.15875,3152.8,3147.8,0.00247797]
[1768311039895,3.32975,3152.7,3148.7,0.15895]
[1768311040199,3.171,3152.7,3148.8,0.15894]
[1768311040400,0.15876,3152.4,3147.9,3.41760178]
[1768311040707,0.1587,3153.6,3147.8,0.00247797]
[1768311041004,0.15872,3153.3,3149.1,0.15893]
[1768311041202,0.15872,3153.3,3149.2,0.15892]
[1768311041405,3.171,3153.2,3147.9,3.47062359]
[1768311041806,0.15872,3153.3,3149.2,0.15892]
[1768311042106,0.15865,3154.6,3149.3,3.51854173]
[1768311042327,3.172,3154.3,3149.3,3.51854173]
[1768311042495,0.15865,3154.6,3148.8,3.51854173]
[1768311042701,0.15865,3154.6,3148.9,0.15894]
[1768311043104,0.15865,3154.6,3149.3,0.15892]
[1768311043304,0.15864,3154.9,3150.7,0.15885]
[1768311043506,0.15864,3154.9,3150.7,0.00347338]
[1768311043701,0.15864,3154.9,3150.8,3.53442301]
[1768311044012,3.173,3155.4,3151.9,0.15879]
[1768311044414,3.173,3155.4,3152.0,0.15878]
[1768311044607,3.173,3155.7,3150.8,3.53442301]
[1768311044808,3.173,3155.7,3152.0,0.15878]
[1768311045007,0.15861,3155.4,3152.0,0.15878]
[1768311045205,3.173,3155.7,3151.0,0.15883]
[1768311045511,0.1587,3153.7,3150.7,0.00347338]
[1768311045714,3.173,3153.8,3150.7,0.00347338]
[1768311046100,0.00337905,3154.4,3151.1,0.15883]
[1768311046301,0.00337905,3154.4,3150.8,3.56507903]
[1768311046508,0.00337905,3154.4,3152.1,0.15877]
[1768311046806,0.00337905,3154.4,3150.7,0.00347338]
[1768311047008,0.00337905,3154.4,3150.7,6.00347338]
[1768311047208,0.00337905,3154.4,3150.8,3.29912384]
[1768311047405,0.00337905,3154.4,3151.7,0.1588]
[1768311047608,0.00337905,3154.4,3150.8,3.29912384]
[1768311047810,0.00337905,3154.4,3150.7,0.16232338]
[1768311048006,6.00337905,3154.4,3150.7,0.00347338]
[1768311048212,0.15871,3153.5,3150.7,0.00347338]
[1768311048402,0.15871,3153.5,3150.7,0.16232338]
[1768311048802,0.15867,3154.3,3151.1,0.15883]
[1768311049012,3.173,3154.2,3150.7,0.00347338]
[1768311049208,0.15869,3153.8,3150.7,0.16231338]
[1768311049408,2.04273032,3153.7,3150.9,2.04273032]
[1768311049619,6.0,3153.8,3150.7,0.00347338]
[1768311049822,6.0,3153.8,3151.0,2.04273032]
[1768311050112,0.15872,3153.3,3150.7,0.00347338]
[1768311050327,2.04273032,3152.7,3150.7,0.00347338]
[1768311050617,3.174,3153.5,3148.0,3.173]
[1768311050803,2.04273032,3152.1,3149.0,0.15893]
[1768311051116,2.04273032,3152.1,3147.7,1.20413403]
[1768311051117,0.15881,3151.5,3148.7,2.04273032]
[1768311051420,0.00358025,3151.5,3149.3,2.04273032]
[1768311051618,0.00358025,3151.5,3148.7,0.00245012]
[1768311051822,2.04273032,3151.2,3148.7,0.00245012]
[1768311052314,0.15884,3151.0,3148.7,0.00245012]
[1768311052914,2.04273032,3150.7,3148.7,0.00245012]
[1768311053113,2.04273032,3151.1,3148.3,2.04273032]
[1768311053416,3.174,3151.0,3148.5,0.15896]
[1768311053616,2.04273032,3150.9,3147.9,2.20172032]
[1768311053917,2.04273032,3150.2,3147.7,1.20413403]
[1768311054109,2.04273032,3150.2,3147.9,0.00359227]
[1768311054309,3.175,3150.3,3147.9,0.00359227]
[1768311055012,3.175,3150.4,3148.0,0.15898]
[1768311055815,2.04273032,3149.5,3147.9,0.00359227]
[1768311056114,1.324,3151.2,3147.9,0.00359227]
[1768311056115,40.8,3152.0,3147.9,0.00359227]
[1768311056315,2.04273032,3150.4,3147.9,0.00359227]
[1768311056618,2.04273032,3150.0,3147.9,0.00359227]
[1768311057008,3.176,3149.9,3147.9,0.00359227]
[1768311057204,2.04273032,3149.3,3147.9,0.00359227]
[1768311057613,3.176,3149.2,3147.9,0.00359227]
[1768311057813,0.00240335,3149.2,3147.9,0.00359227]
[1768311058007,3.17840335,3149.2,3147.9,0.00359227]
[1768311058209,3.17840335,3149.2,3147.7,1.20413403]
[1768311058420,3.176,3149.1,3147.7,1.20413403]
[1768311058811,0.00240335,3149.2,3147.7,0.56144923]
[1768311059218,0.00240335,3149.2,3147.7,0.56518908]
[1768311060114,0.00240335,3149.2,3147.5,2.04273032]
[1768311060320,0.00240335,3149.2,3147.0,0.15903]
[1768311060519,0.00240335,3149.2,3147.3,2.20175032]
[1768311060815,0.00240335,3149.2,3147.6,0.159]
[1768311061116,0.00240335,3149.2,3148.0,2.04273032]
[1768311061318,0.00240335,3149.2,3147.6,0.00280126]
[1768311061708,0.00240335,3149.2,3147.6,8.04553158]
[1768311061909,3.36773032,3150.9,3147.6,8.04553158]
[1768311061910,40.8,3154.9,3148.5,2.04273032]
[1768311062112,2.04273032,3151.5,3147.7,3.46704159]
[1768311062321,2.20148032,3152.7,3150.0,2.04273032]
[1768311062511,2.20148032,3152.7,3149.6,2.04273032]
[1768311062712,2.20148032,3152.7,3150.2,0.15887]
[1768311062922,2.04273032,3151.9,3150.2,0.00223845]
[1768311063416,2.04273032,3152.1,3150.2,0.00223845]
[1768311063607,0.00238347,3152.7,3150.2,0.00223845]
[1768311064011,0.00238347,3152.7,3150.9,0.15883]
[1768311064210,0.00238347,3152.7,3150.2,0.00223845]
[1768311064411,0.00238347,3152.7,3151.1,0.15883]
[1768311065015,0.00238347,3152.7,3150.4,0.15886]
[1768311065215,0.00238347,3152.7,3150.7,2.20157032]
[1768311065417,0.00238347,3152.7,3150.7,0.15884]
[1768311065611,0.00238347,3152.7,3150.3,3.177]
[1768311066012,0.00238347,3152.7,3150.8,0.15884]
[1768311066315,0.00238347,3152.7,3151.0,2.04273032]
[1768311066614,0.00238347,3152.7,3151.2,0.15882]
[1768311067006,0.00238347,3152.7,3150.5,2.04273032]
[1768311067211,0.00238347,3152.7,3150.4,0.15886]
[1768311067615,3.17838347,3152.7,3150.4,2.20159032]
[1768311067819,0.00238347,3152.7,3150.4,0.15886]
[1768311068908,2.04511379,3152.7,3150.4,0.15886]
[1768311069113,2.04273032,3152.3,3150.2,0.00223845]
[1768311069308,0.15877,3152.4,3150.2,0.00223845]
[1768311069514,0.00238347,3152.7,3150.2,0.00223845]
[1768311070526,0.15879,3151.8,3150.2,0.00223845]
[1768311070721,6.00238347,3152.7,3148.5,3.176]
[1768311070722,2.45288725,3152.2,3148.5,3.176]
[1768311071025,2.45288725,3151.5,3147.7,3.335]
[1768311071215,0.15885,3150.7,3148.0,0.15898]
[1768311071421,0.15885,3150.7,3147.7,3.176]
[1768311071422,3.176,3150.6,3148.2,0.15897]
[1768311071923,0.15887,3150.4,3148.2,0.00288455]
[1768311072118,3.176,3150.3,3148.2,0.00288455]
[1768311072334,0.15888,3150.1,3148.2,0.00288455]
[1768311072720,0.00250024,3150.4,3148.2,0.00288455]
[1768311072922,0.00250024,3150.4,3148.7,0.15895]
[1768311074015,0.00250024,3150.4,3148.2,0.00288455]
[1768311074016,0.00250024,3150.4,3148.3,3.176]
[1768311074416,0.00250024,3150.4,3148.7,0.15895]
[1768311074623,0.00250024,3150.4,3148.2,0.00288455]
[1768311074822,0.15888,3150.2,3148.2,0.00288455]
[1768311075731,0.00250024,3150.4,3148.2,0.00288455]
[1768311075930,0.00250024,3150.4,3148.2,0.16185455]
[1768311076528,0.16137024,3150.4,3148.2,0.00288455]
[1768311076926,0.15887,3150.3,3148.2,0.00288455]
[1768311077228,0.15888,3150.2,3148.2,0.00288455]
[1768311077929,3.177,3150.3,3148.2,0.00288455]
[1768311078131,0.00250024,3150.4,3148.2,0.00288455]
[1768311078327,2.45288725,3150.1,3148.2,0.00288455]
[1768311079030,0.00250024,3150.4,3148.2,0.00288455]
[1768311079235,0.15901,3147.5,3145.1,7.13245778]
[1768311079436,5.62988725,3147.4,3144.9,0.15914]
[1768311079628,0.15904,3147.0,3143.9,0.25634538]
[1768311079936,0.15904,3147.0,3143.8,7.13245778]
[1768311080228,0.15905,3146.8,3144.0,0.15919]
[1768311080433,0.15905,3146.8,3143.8,0.0036937]
[1768311080434,0.15905,3146.7,3144.2,0.15918]
[1768311080928,0.15906,3146.6,3143.8,0.0036937]
[1768311081130,0.15906,3146.5,3143.8,0.0036937]
[1768311081330,3.177,3146.4,3143.8,0.0036937]
[1768311081527,0.00391429,3147.0,3144.2,0.15917]
[1768311081733,0.00391429,3147.0,3143.8,0.0036937]
[1768311081734,0.00391429,3147.0,3144.3,0.15917]
[1768311081935,0.00391429,3147.0,3144.6,0.15915]
[1768311082234,0.00391429,3147.0,3143.9,2.45288725]
[1768311082527,0.00391429,3147.0,3143.9,0.15919]
[1768311082732,0.00391429,3147.0,3144.7,0.15915]
[1768311083541,0.15905,3146.8,3144.0,0.15919]
[1768311083833,2.45288725,3146.9,3144.0,0.15919]
[1768311084138,2.45288725,3146.1,3143.8,0.0036937]
[1768311084330,0.15905,3146.7,3143.8,0.0036937]
[1768311084633,0.15904,3146.9,3143.8,0.0036937]
[1768311084828,3.179,3146.8,3143.9,0.15919]
[1768311085032,0.15907,3146.3,3143.8,0.0036937]
[1768311085228,0.15905,3146.7,3143.8,0.1628937]
[1768311085625,2.45288725,3146.1,3143.8,0.0036937]
[1768311086030,3.179,3146.0,3143.8,0.0036937]
[1768311086238,0.1591,3145.8,3143.8,0.0036937]
[1768311086435,0.15911,3145.6,3143.8,0.0036937]
[1768311086632,3.179,3145.5,3143.8,0.0036937]
[1768311086838,0.15909,3146.0,3143.8,0.0036937]
[1768311087141,2.45288725,3145.6,3143.8,0.0036937]
[1768311087434,0.15913,3145.1,3142.5,0.15926]
[1768311087633,2.45288725,3144.9,3141.7,0.1593]
[1768311087838,0.15915,3144.7,3141.6,1.04436051]
[1768311088040,3.18,3144.6,3141.6,1.04436051]
[1768311088237,3.18266617,3144.6,3141.6,1.04797625]
[1768311088444,0.00266617,3144.6,3141.6,1.04797625]
[1768311088749,0.00266617,3144.6,3142.3,0.15927]
[1768311089046,0.00266617,3144.6,3141.6,1.04797625]
[1768311089047,2.45288725,3144.2,3141.6,1.04797625]
[1768311089245,2.61206725,3144.2,3141.6,1.04797625]
[1768311089634,2.45555342,3144.6,3141.6,1.04797625]
[1768311089835,5.63288725,3144.5,3141.6,1.04797625]
[1768311090141,2.45288725,3143.1,3141.6,1.04797625]
[1768311090442,2.45288725,3143.1,3139.3,22.265]
[1768311090443,2.45288725,3142.3,3139.4,0.15942]
[1768311090638,6.33233591,3145.4,3140.6,0.15935]
[1768311090834,2.45288725,3144.0,3139.8,0.25561777]
[1768311091046,0.15921,3143.5,3140.6,0.15936]
[1768311091236,2.45288725,3143.3,3139.8,0.25561777]
[1768311091440,0.15924,3143.1,3139.8,0.41908586]
[1768311091637,0.15924,3143.0,3140.1,0.15938]
[1768311091839,2.61214725,3142.6,3140.1,0.15938]
[1768311092143,8.45579169,3143.3,3139.8,0.00406809]
[1768311092144,0.00290444,3143.3,3139.8,0.00406809]
[1768311092441,2.45288725,3143.0,3140.4,0.15937]
[1768311092637,0.00290444,3143.3,3140.6,0.15936]
[1768311092839,2.45288725,3142.5,3139.8,0.00406809]
[1768311093031,2.45288725,3142.5,3140.7,0.15935]
[1768311093236,2.45288725,3142.9,3140.8,0.15935]
[1768311093441,2.45288725,3142.2,3139.8,0.00406809]
[1768311093634,2.45288725,3142.9,3139.8,6.00406809]
[1768311093837,2.45288725,3142.7,3140.6,0.15936]
[1768311094045,2.45288725,3143.0,3139.8,0.00406809]
[1768311094343,2.45288725,3142.3,3139.8,0.00406809]
[1768311094541,2.45288725,3142.3,3140.0,0.15939]
[1768311094746,2.45288725,3141.6,3139.8,0.00406809]
[1768311094944,0.00290444,3143.3,3139.8,0.00406809]
[1768311094945,2.45288725,3142.6,3139.8,0.00406809]
[1768311095152,2.45288725,3141.9,3139.8,0.00406809]
[1768311095445,0.15931,3141.7,3139.8,0.00406809]
[1768311095645,2.45288725,3141.9,3139.8,0.00406809]
[1768311095838,0.15927,3142.3,3139.9,0.15939]
[1768311096034,3.183,3142.2,3140.0,0.15939]
[1768311096240,0.15928,3142.1,3139.8,0.00406809]
[1768311096437,0.15929,3142.0,3139.8,0.00406809]
[1768311096639,3.183,3141.9,3139.8,0.00406809]
[1768311096841,3.183,3142.1,3139.8,0.00406809]
[1768311097038,3.183,3142.2,3139.8,0.00406809]
[1768311097238,0.15928,3142.2,3139.8,0.00406809]
[1768311097547,0.15925,3142.8,3140.0,0.15939]
[1768311097745,0.15925,3142.8,3139.8,0.00406809]
[1768311097943,3.18590444,3143.3,3141.2,0.15932]
[1768311098246,0.00290444,3143.3,3141.7,0.1593]
[1768311098442,0.00290444,3143.3,3140.4,2.45288725]
[1768311098643,3.184,3145.8,3142.6,0.15925]
[1768311098841,0.15907,3146.4,3143.5,0.15921]
[1768311099040,3.184,3146.3,3142.3,2.45288725]
[1768311099243,2.45288725,3146.9,3143.6,0.15921]
[1768311099545,0.16190852,3146.9,3144.0,0.15918]
[1768311099751,0.00286852,3146.9,3144.0,6.0]
[1768311100041,0.00286852,3146.9,3144.2,0.15918]
[1768311100244,2.45288725,3146.7,3143.6,0.00305164]
[1768311100442,0.15912,3145.4,3143.6,0.00305164]
[1768311100645,3.184,3145.3,3143.6,0.00305164]
[1768311100852,2.61201725,3145.2,3143.6,0.00305164]
[1768311101151,3.183,3145.2,3143.6,0.00305164]
[1768311101335,11.63588725,3145.2,3141.6,0.15931]
[1768311101544,0.15914,3145.0,3140.8,2.45288725]
[1768311101847,0.15914,3144.9,3140.8,2.45288725]
[1768311102149,2.61205725,3144.3,3140.7,0.15935]
[1768311102357,0.16184691,3144.3,3141.1,0.15933]
[1768311102642,0.00267691,3144.3,3140.8,11.81985969]
[1768311102941,0.00267691,3144.3,3141.6,0.15931]
[1768311103148,0.00267691,3144.3,3140.8,8.45288725]
[1768311103843,0.00267691,3144.3,3141.8,0.1593]
[1768311104050,0.00267691,3144.3,3142.1,0.15928]
[1768311104349,3.183,3146.1,3143.1,0.15923]
[1768311104544,3.183,3146.0,3143.1,0.15923]
[1768311104750,0.15907,3146.3,3143.2,0.15922]
[1768311104944,3.183,3146.7,3143.7,0.1592]
[1768311105141,0.15903,3147.2,3143.8,0.1592]
[1768311105445,0.00366229,3147.2,3143.8,0.00250623]
[1768311105944,0.00366229,3147.2,3145.3,0.15912]
[1768311106147,0.00366229,3147.2,3145.3,0.24959024]
[1768311106350,3.183,3148.7,3145.8,0.15909]
[1768311106644,3.183,3148.8,3146.0,0.15909]
[1768311106942,3.183,3149.0,3146.0,0.15909]
[1768311107350,3.1864105,3149.0,3146.1,0.15908]
[1768311107542,0.0034105,3149.0,3146.1,0.16251593]
[1768311107741,0.0034105,3149.0,3146.4,0.15906]
[1768311107948,2.61523775,3149.0,3146.1,0.00343593]
[1768311108144,2.45629775,3149.0,3146.1,0.00343593]
[1768311108340,0.0034105,3149.0,3146.1,0.00343593]
[1768311108747,3.183,3148.9,3146.1,0.00343593]
[1768311108949,0.15898,3148.2,3146.1,0.00343593]
[1768311109345,2.45288725,3148.7,3146.1,0.00343593]
[1768311109551,6.0,3148.6,3146.1,0.00343593]
[1768311109854,0.15899,3148.0,3146.1,0.00343593]
[1768311110049,3.182,3147.9,3146.1,0.00343593]
[1768311110246,2.45288725,3147.3,3143.5,7.13245778]
[1768311110448,4.507,3147.2,3143.4,0.15922]
[1768311110745,4.507,3147.1,3143.3,2.45288725]
[1768311110946,4.66603,3147.1,3143.9,0.15919]
[1768311111148,3.182,3147.0,3143.3,2.45288725]
[1768311111454,3.34104,3147.0,3144.2,0.15918]
[1768311111848,0.15905,3146.7,3144.2,0.15918]
[1768311112047,0.16281132,3146.7,3144.2,0.15918]
[1768311112252,0.16281132,3146.7,3143.3,0.0036343]
[1768311112449,0.15907,3146.4,3143.5,0.15921]
[1768311113055,0.15907,3146.3,3143.6,0.15921]
[1768311113250,3.182,3146.3,3143.9,0.15919]
[1768311113552,0.00376132,3146.7,3143.8,2.45288725]
[1768311113752,0.00376132,3146.7,3144.9,0.15914]
[1768311114052,0.00376132,3146.7,3143.9,3.35027704]
[1768311114244,0.00376132,3146.7,3143.8,8.45288725]
[1768311114445,0.00376132,3146.7,3145.0,0.15913]
[1768311114649,0.00376132,3146.7,3145.2,0.15912]
[1768311114851,2.45664857,3146.7,3143.9,3.35027704]
[1768311115153,0.15906,3146.5,3143.6,0.15921]
[1768311115353,0.15906,3146.5,3143.7,0.1592]
[1768311115551,0.00376132,3146.7,3144.1,0.15918]
[1768311116242,0.16281132,3146.7,3144.1,0.15918]
[1768311116646,0.00376132,3146.7,3143.7,2.45288725]
[1768311117255,0.00376132,3146.7,3144.5,0.15916]
[1768311118047,0.16281132,3146.7,3144.5,0.15916]
[1768311118249,0.00376132,3146.7,3144.5,0.15916]
[1768311118448,0.00376132,3146.7,3144.4,0.15916]
[1768311119254,0.00376132,3146.7,3143.7,2.45288725]
[1768311119643,0.16281132,3146.7,3143.4,3.44508466]
[1768311119847,0.15906,3146.6,3144.0,0.15918]
[1768311120046,0.15906,3146.6,3144.1,0.15918]
[1768311120255,0.00376132,3146.7,3143.7,2.45288725]
[1768311120458,0.00376132,3146.7,3144.5,0.15916]
[1768311121164,0.16281132,3146.7,3144.5,0.15916]
[1768311121455,8.45664857,3146.7,3143.8,0.1592]
[1768311121657,0.15911,3145.6,3143.3,0.0036343]
[1768311121859,3.34108,3146.2,3143.7,0.1592]
[1768311122154,0.00376132,3146.7,3143.3,0.0036343]
[1768311122356,3.18576132,3146.7,3144.5,0.15916]
[1768311122555,3.34481132,3146.7,3144.5,0.15916]
[1768311122752,0.00376132,3146.7,3144.5,6.0]
[1768311122957,6.372,3149.4,3145.5,2.45288725]
[1768311123166,0.15892,3149.3,3145.7,2.45288725]
[1768311123458,2.45288725,3148.9,3145.0,2.45288725]
[1768311123658,2.45288725,3148.9,3146.0,0.15909]
[1768311123852,2.45288725,3149.6,3145.7,2.45288725]
[1768311124059,0.00236206,3148.9,3146.4,2.45288725]
[1768311124256,0.00236206,3148.9,3147.3,0.15902]
[1768311124554,0.00236206,3148.9,3147.9,0.15899]
[1768311125068,3.34082,3151.4,3147.9,6.25749222]
[1768311125354,3.34082,3151.4,3147.8,2.45288725]
[1768311125549,0.15882,3151.4,3147.9,6.0]
[1768311125752,2.45288725,3151.2,3148.5,0.15896]
[1768311126054,2.45645925,3151.2,3148.5,0.1625522]
[1768311126255,0.003572,3151.2,3148.5,0.1625522]
[1768311126452,3.181,3151.1,3148.5,0.1625522]
[1768311126652,3.33983,3151.1,3148.5,0.1625522]
[1768311127157,3.181,3151.1,3148.5,0.0035922]
[1768311127453,6.0,3151.0,3148.5,0.0035922]
[1768311127759,0.15888,3150.2,3148.5,0.0035922]
[1768311128155,2.45288725,3149.6,3146.4,0.15906]
[1768311128348,2.45288725,3150.4,3146.4,0.15906]
[1768311128349,3.18,3149.5,3146.4,0.15906]
[1768311128764,2.45288725,3147.4,3144.2,0.15917]
[1768311129065,0.15902,3147.3,3144.2,0.00346574]
[1768311129361,2.05200878,3146.2,3144.2,0.00346574]
[1768311129561,2.05200878,3146.6,3144.2,0.00346574]
[1768311129762,3.18,3151.8,3146.9,0.15904]
[1768311129960,2.05200878,3150.2,3147.3,2.05200878]
[1768311130262,2.05200878,3150.0,3147.2,0.15902]
[1768311130457,2.05200878,3150.0,3147.5,2.21101878]
[1768311130659,2.05200878,3150.2,3147.5,2.21101878]
[1768311130855,0.00228233,3150.2,3147.9,2.05200878]
[1768311131255,0.00228233,3150.2,3148.4,2.05200878]
[1768311131865,2.05429111,3150.2,3147.5,0.00268759]
[1768311132063,0.00228233,3150.2,3147.5,0.16169759]
[1768311132461,2.05200878,3150.0,3147.5,0.16169759]
[1768311132665,0.00228233,3150.2,3147.5,0.16169759]
[1768311133057,2.05200878,3149.7,3147.5,0.00268759]
[1768311133568,0.15889,3149.9,3147.5,2.05469637]
[1768311133860,2.05200878,3149.2,3147.5,0.00268759]
[1768311134063,2.05200878,3148.0,3145.3,0.15912]
[1768311134563,2.05200878,3147.5,3145.3,0.15912]
[1768311134958,2.05200878,3147.4,3145.3,0.16310383]
[1768311135569,0.00302137,3147.5,3145.3,0.16310383]
[1768311135863,2.05200878,3149.4,3146.7,0.15905]
[1768311136059,2.05200878,3148.4,3145.9,0.15909]
[1768311136251,3.18,3149.4,3146.3,0.15907]
[1768311136252,2.05200878,3148.8,3146.3,0.15907]
[1768311136562,3.18,3149.4,3146.0,2.05200878]
[1768311136763,2.21093878,3149.2,3146.5,0.15906]
[1768311137066,2.21093878,3149.2,3146.6,0.15906]
[1768311137457,2.05200878,3148.0,3145.9,0.15909]
[1768311138064,2.21096878,3148.6,3146.1,0.15908]
[1768311138262,0.00405845,3149.4,3146.0,6.0]
[1768311138461,0.00405845,3149.4,3148.3,0.15897]
[1768311138656,0.00405845,3149.4,3148.3,0.16155466]
[1768311139064,0.00405845,3149.4,3148.3,0.00258466]
[1768311139255,0.00405845,3149.4,3148.7,0.15895]
[1768311139565,2.05200878,3150.7,3148.3,0.00258466]
[1768311140464,0.0035703,3150.7,3148.3,0.00258466]
[1768311140666,0.0035703,3150.7,3148.4,0.15896]
[1768311140871,0.0035703,3150.7,3148.7,2.05200878]
[1768311141367,0.0035703,3150.7,3148.6,0.15895]
[1768311141570,0.0035703,3150.7,3148.3,0.00258466]
[1768311141571,0.0035703,3150.7,3148.8,0.15894]
[1768311141775,2.05200878,3150.4,3148.3,0.00258466]
[1768311142264,2.05200878,3150.0,3148.3,0.00258466]
[1768311142764,2.21086878,3150.5,3148.3,0.00258466]
[1768311142967,2.05200878,3150.0,3148.3,0.00258466]
[1768311143270,2.05200878,3149.6,3148.3,0.00258466]
[1768311144168,2.05200878,3150.5,3148.3,0.00258466]
[1768311144373,0.0035703,3150.7,3148.3,2.21355344]
[1768311144564,2.05200878,3150.5,3148.3,0.16154466]
[1768311144961,0.1624203,3150.7,3148.3,0.16154466]
[1768311145758,2.05200878,3150.5,3148.3,0.16154466]
[1768311145959,2.21086878,3150.5,3148.3,0.00258466]
[1768311146171,2.05200878,3150.1,3148.3,0.00258466]
[1768311146674,2.05200878,3149.6,3148.3,0.00258466]
[1768311146871,2.05200878,3149.9,3148.3,0.00258466]
[1768311147072,2.21087878,3150.3,3148.3,0.00258466]
[1768311147566,2.05557908,3150.7,3148.4,0.15896]
[1768311147769,2.05557908,3150.7,3148.6,0.15895]
[1768311148071,0.15886,3150.5,3148.3,0.16155466]
[1768311148969,0.15873,3153.2,3150.7,0.15885]
[1768311149168,0.15873,3153.2,3150.8,2.05200878]
[1768311149368,0.15873,3153.2,3150.7,0.15885]
[1768311149566,43.979,3154.6,3150.9,0.15884]
[1768311149567,3.179,3154.6,3150.9,0.15884]
[1768311149768,2.05200878,3153.6,3150.9,0.15884]
[1768311149971,2.05200878,3153.2,3150.9,0.00284787]
[1768311150375,2.05200878,3152.8,3150.9,0.00284787]
[1768311150677,2.21073878,3153.2,3150.9,0.00284787]
[1768311150977,6.46956557,3157.0,3150.9,0.00284787]
[1768311150978,0.96983877,3159.1,3150.9,0.00284787]
[1768311151165,0.15865,3154.8,3151.2,0.15882]
[1768311151366,0.15865,3154.8,3152.1,2.05200878]
[1768311151570,0.1586,3155.7,3153.8,2.05200878]
[1768311151769,0.15856,3156.5,3154.3,2.05200878]
[1768311152071,1.20662694,3155.6,3154.4,2.05200878]
[1768311152762,1.20662694,3155.6,3154.3,0.00327018]
[1768311152971,2.05200878,3158.8,3154.4,6.0]
[1768311153270,0.15845,3158.6,3156.5,2.05200878]
[1768311153571,0.15845,3158.6,3156.9,2.05200878]
[1768311153767,0.15845,3158.6,3156.5,2.05200878]
[1768311154078,6.00269138,3158.6,3156.5,0.00351233]
[1768311154369,8.05470016,3158.6,3155.9,2.05200878]
[1768311154574,2.05200878,3158.2,3155.7,2.05200878]
[1768311154772,0.1585,3157.7,3155.7,2.05200878]
[1768311155069,0.00269138,3158.6,3153.9,0.15869]
[1768311155070,0.15853,3157.1,3153.9,0.15869]
[1768311155271,3.177,3157.0,3153.9,0.00372798]
[1768311155463,0.15855,3156.6,3154.7,2.05200878]
[1768311155665,0.15856,3156.5,3154.7,2.05200878]
[1768311155869,6.0,3156.9,3154.5,2.05200878]
[1768311156068,3.177,3157.0,3154.5,2.05200878]
[1768311156271,3.176,3156.9,3155.0,2.05200878]
[1768311156580,9.176,3156.9,3154.3,2.05200878]
[1768311156767,0.15848,3158.0,3155.1,0.15863]
[1768311157074,0.15844,3158.8,3157.2,2.05200878]
[1768311157274,0.15844,3158.8,3157.2,0.00410789]
[1768311157481,0.15845,3158.7,3157.2,0.00410789]
[1768311157665,0.15847,3158.3,3156.2,2.05200878]
[1768311157866,3.33447,3158.3,3156.2,2.05200878]
[1768311158074,0.15847,3158.3,3156.2,2.05200878]
[1768311158272,0.81140877,3159.1,3156.2,2.05200878]
[1768311158480,3.98640877,3159.1,3157.6,2.05200878]
[1768311158775,0.81140877,3159.1,3157.6,2.05484568]
[1768311159173,0.81140877,3159.1,3157.6,0.0028369]
[1768311159565,0.81140877,3159.1,3155.8,0.15859]
[1768311159771,0.15846,3158.4,3156.2,2.05200878]
[1768311159973,0.15848,3158.1,3156.2,2.05200878]
[1768311160366,1.32269138,3158.6,3156.2,2.05200878]
[1768311160367,0.16114138,3158.6,3156.2,2.05200878]
[1768311160567,3.33514138,3158.6,3156.7,2.05200878]
[1768311160775,0.15846,3158.4,3156.2,2.05601079]
[1768311160977,0.15847,3158.3,3156.2,2.05601079]
[1768311161984,6.0,3158.3,3156.2,0.00400201]
[1768311162173,0.1585,3157.7,3156.2,0.00400201]
[1768311162384,6.0,3158.3,3155.1,2.05200878]
[1768311162572,1.32,3158.1,3155.8,2.05200878]
[1768311162877,0.15851,3157.5,3155.4,2.05200878]
[1768311163072,0.15851,3157.4,3155.1,2.05200878]
[1768311163271,3.33151,3157.4,3155.5,2.05200878]
[1768311163482,0.15852,3157.2,3155.5,0.00228511]
[1768311163680,0.15854,3156.8,3155.5,0.00228511]
[1768311163972,0.15855,3156.7,3155.5,0.00228511]
[1768311164281,0.15841,3159.6,3156.6,2.21055878]
[1768311164478,0.15836,3160.5,3158.1,2.05200878]
[1768311164782,6.40192979,3162.6,3155.6,9.87039313]
[1768311164783,2.05200878,3163.1,3160.3,2.05200878]
[1768311165081,0.15823,3163.0,3160.1,2.05200878]
[1768311165376,2.05200878,3162.6,3160.1,0.00261558]
[1768311165769,0.00339143,3163.0,3160.1,0.00261558]
[1768311165770,0.15831,3161.5,3160.1,0.00261558]
[1768311165970,0.15834,3160.8,3158.5,2.05200878]